bitfinex-derivatives/quotes_SOLF0:USTF0_20250626
["timestamp","ask_amount","ask_price","bid_price","bid_amount"]
[1750968055610,4.53585966,142.11,142.09,6.52748493]
[1750968055804,11.57015966,142.11,142.09,13.56268493]
[1750968057914,4.53585966,142.11,142.09,13.56268493]
[1750968059309,4.53585966,142.11,142.09,6.52748493]
[1750968059508,4.53585966,142.11,142.08,13.56308493]
[1750968059709,11.57115966,142.09,142.08,6.52748493]
[1750968060012,4.53585966,142.09,142.07,6.52748493]
[1750968060312,4.53585966,142.09,142.06,6.52748493]
[1750968060614,4.53585966,142.07,142.05,6.54845518]
[1750968060815,4.53585966,142.06,142.04,7.0375]
[1750968061324,4.53585966,142.1,142.03,4.53585966]
[1750968061618,37.06,142.11,142.03,4.53585966]
[1750968061619,37.06,142.11,142.05,8.535602]
[1750968061912,48.63055966,142.11,142.08,7.0355]
[1750968062412,41.59585966,142.11,142.08,7.0355]
[1750968063617,7.0348,142.1,142.08,7.0355]
[1750968065921,48.63035966,142.11,142.09,7.0353]
[1750968066216,4.53585966,142.11,142.05,45.255602]
[1750968066622,4.53585966,142.11,142.09,7.035]
[1750968067720,50.62825966,142.13,142.06,8.535602]
[1750968068015,48.28945966,142.13,142.07,4.53585966]
[1750968068219,48.28945966,142.13,142.11,7.034]
[1750968068519,11.56945966,142.13,142.11,7.034]
[1750968069410,11.56945966,142.13,142.07,4.53585966]
[1750968069411,7.0339,142.12,142.1,7.0346]
[1750968069909,4.53585966,142.13,142.09,7.0351]
[1750968070220,4.53585966,142.11,142.07,8.535602]
[1750968070421,4.53585966,142.09,142.06,8.535602]
[1750968070615,4.53585966,142.07,142.05,8.535602]
[1750968070921,4.53585966,142.06,142.04,8.535602]
[1750968071120,11.57225966,142.07,142.04,7.0377]
[1750968071719,4.53585966,142.07,142.04,15.573302]
[1750968072021,4.7272,142.1,142.04,8.535602]
[1750968072022,4.53585966,142.05,142.04,8.535602]
[1750968072221,13.84829039,142.06,142.02,8.535602]
[1750968072523,6.81109039,142.06,142.03,7.038]
[1750968072719,6.81109039,142.06,142.02,8.535602]
[1750968073118,4.34791885,142.09,142.03,8.535602]
[1750968073317,6.81109039,142.08,142.03,8.535602]
[1750968073517,13.84709039,142.08,142.03,8.535602]
[1750968073713,6.81109039,142.08,142.04,7.0375]
[1750968074012,6.81109039,142.08,142.03,8.535602]
[1750968074209,13.84709039,142.08,142.05,7.0371]
[1750968075321,7.0364,142.07,142.04,7.0374]
[1750968075523,7.0364,142.07,142.02,8.535602]
[1750968075920,7.0364,142.07,142.04,7.0373]
[1750968076524,6.81109039,142.08,142.02,8.535602]
[1750968076723,6.81109039,142.08,142.03,8.535602]
[1750968077225,6.81109039,142.09,142.03,8.535602]
[1750968077824,6.81109039,142.09,142.06,7.0366]
[1750968078127,6.81109039,142.09,142.03,8.535602]
[1750968078328,6.81109039,142.09,142.02,8.535602]
[1750968078626,6.81109039,142.07,142.02,8.535602]
[1750968078818,6.81109039,142.07,142.01,8.535602]
[1750968079021,7.037,142.06,142.03,7.038]
[1750968079221,6.81109039,142.07,142.01,8.535602]
[1750968079415,43.53109039,142.07,142.01,8.535602]
[1750968079622,7.0378,142.04,142.02,7.0386]
[1750968080434,7.0378,142.04,142.01,8.535602]
[1750968080823,13.84859039,142.05,142.03,7.0383]
[1750968081124,43.53109039,142.07,142.0,8.535602]
[1750968081426,43.53109039,142.07,142.01,8.535602]
[1750968081622,43.53109039,142.07,142.0,8.535602]
[1750968081824,43.53109039,142.07,142.01,8.535602]
[1750968082217,43.53109039,142.07,142.05,7.037]
[1750968082825,4.7272,142.1,142.03,8.535602]
[1750968082826,7.0356,142.09,142.03,8.535602]
[1750968083429,7.0356,142.09,142.06,7.0364]
[1750968083728,7.0358,142.08,142.06,7.0364]
[1750968084631,7.0354,142.09,142.07,7.0363]
[1750968084820,48.25829039,142.1,142.03,8.535602]
[1750968085232,7.0358,142.08,142.06,7.0366]
[1750968087026,7.0356,142.09,142.06,7.0366]
[1750968087226,7.0356,142.09,142.03,8.535602]
[1750968087832,7.0356,142.09,142.06,7.0365]
[1750968089834,7.0359,142.08,142.06,7.0365]
[1750968091838,7.0359,142.08,142.05,7.0371]
[1750968092036,7.0363,142.07,142.05,7.0371]
[1750968092231,11.57605177,142.07,142.03,8.535602]
[1750968092433,11.57605177,142.07,142.04,7.0373]
[1750968093638,4.53975177,142.07,142.05,7.0371]
[1750968094638,4.53975177,142.07,142.02,8.535602]
[1750968094939,4.53975177,142.07,142.01,11.029902]
[1750968095138,7.0369,142.06,142.01,11.029902]
[1750968095328,7.0369,142.06,142.03,7.038]
[1750968095838,7.0369,142.06,142.01,11.029902]
[1750968096039,7.0369,142.06,142.02,8.535602]
[1750968096239,7.0369,142.06,142.03,7.0379]
[1750968097941,7.0369,142.06,142.04,7.0378]
[1750968098133,7.0369,142.06,142.01,11.029902]
[1750968098644,7.0369,142.06,142.04,7.0378]
[1750968098836,7.0373,142.05,142.01,11.029902]
[1750968099340,7.0373,142.05,142.03,7.038]
[1750968100739,4.53975177,142.07,142.01,11.029902]
[1750968100740,7.0372,142.06,142.01,11.029902]
[1750968101445,7.0372,142.06,142.03,7.0378]
[1750968102043,7.0372,142.06,142.04,7.0376]
[1750968102944,4.53975177,142.08,142.02,8.535602]
[1750968103145,41.4472,142.1,142.03,8.535602]
[1750968103344,7.0365,142.07,142.05,7.0371]
[1750968105349,7.0368,142.06,142.04,7.0376]
[1750968105549,7.0368,142.06,142.02,8.535602]
[1750968105940,7.0368,142.06,142.01,8.535602]
[1750968106139,7.0374,142.05,142.01,8.535602]
[1750968106447,4.53975177,142.07,142.04,7.0378]
[1750968107337,7.037,142.06,142.04,7.0378]
[1750968107541,4.53975177,142.07,142.04,7.0378]
[1750968107746,4.53975177,142.07,142.05,7.0372]
[1750968108147,11.57635177,142.07,142.05,7.0372]
[1750968108735,11.57635177,142.07,142.04,7.0375]
[1750968108951,4.53975177,142.07,142.02,8.535602]
[1750968109354,4.53975177,142.07,142.03,7.038]
[1750968110651,7.0373,142.05,142.03,7.038]
[1750968110840,7.0373,142.05,142.02,15.574102]
[1750968111152,7.0373,142.05,142.02,8.535602]
[1750968111452,7.0371,142.06,142.03,7.0381]
[1750968111653,7.0371,142.06,142.02,8.535602]
[1750968112152,7.0371,142.06,142.04,7.0376]
[1750968112752,11.57625177,142.07,142.02,8.535602]
[1750968112941,11.57625177,142.07,142.0,17.34315478]
[1750968112942,7.0365,142.07,142.03,8.535602]
[1750968113548,7.0365,142.07,142.04,7.0374]
[1750968113952,7.0365,142.07,142.03,8.535602]
[1750968114149,7.0365,142.07,142.05,7.0371]
[1750968114448,7.0365,142.07,142.0,4.53975177]
[1750968114449,41.4472,142.1,142.04,8.535602]
[1750968114651,9.05406923,142.09,142.05,7.037]
[1750968114851,7.0365,142.07,142.05,7.037]
[1750968115154,4.53975177,142.07,142.04,7.0375]
[1750968115959,7.037,142.06,142.04,7.0375]
[1750968118764,11.57635177,142.07,142.05,7.0372]
[1750968119259,11.57635177,142.07,142.04,8.535602]
[1750968119761,7.0366,142.07,142.04,8.535602]
[1750968120252,7.0366,142.07,142.04,15.573102]
[1750968120559,7.0366,142.07,142.06,6.57774108]
[1750968120758,11.55199543,142.07,142.06,6.57774108]
[1750968121462,7.0366,142.07,142.06,6.57774108]
[1750968121857,11.55196117,142.07,142.05,6.57774108]
[1750968122051,7.0366,142.07,142.05,6.57774108]
[1750968122255,7.0366,142.07,142.06,6.57774108]
[1750968122455,11.55208619,142.07,142.06,6.57774108]
[1750968122759,7.0368,142.06,142.05,6.57774108]
[1750968124063,41.17975177,142.06,142.02,8.535602]
[1750968124256,4.53975177,142.04,142.02,8.535602]
[1750968124660,11.57785177,142.04,142.02,8.535602]
[1750968124861,41.17975177,142.06,142.02,8.535602]
[1750968125158,4.53975177,142.06,142.04,15.573102]
[1750968125364,11.57675177,142.06,142.04,7.0375]
[1750968126860,11.57675177,142.06,142.04,15.573102]
[1750968127767,4.53975177,142.08,142.04,8.535602]
[1750968127965,4.53975177,142.06,142.04,8.535602]
[1750968128269,4.53975177,142.06,142.03,8.535602]
[1750968128869,4.53975177,142.06,142.02,8.535602]
[1750968129065,4.53975177,142.06,142.03,15.573702]
[1750968130071,11.57695177,142.06,142.03,15.573702]
[1750968131372,11.57695177,142.06,142.04,7.0378]
[1750968131560,4.53975177,142.06,142.04,7.0378]
[1750968131765,7.0365,142.07,142.04,7.0378]
[1750968131966,7.0365,142.07,142.05,8.535602]
[1750968132273,4.53975177,142.08,142.04,15.573402]
[1750968133072,7.0364,142.07,142.04,15.573402]
[1750968133273,4.53975177,142.08,142.04,15.573402]
[1750968133781,7.0365,142.07,142.04,15.573402]
[1750968135085,7.0365,142.07,142.05,8.535602]
[1750968135588,4.53975177,142.08,142.05,8.535602]
[1750968135884,4.53975177,142.08,142.05,15.572802]
[1750968136085,4.42825068,142.07,142.04,8.535602]
[1750968136284,4.53975177,142.08,142.04,8.535602]
[1750968136486,4.42845359,142.07,142.04,15.573202]
[1750968136686,7.0372,142.06,142.04,15.573202]
[1750968136887,7.0372,142.06,142.04,8.535602]
[1750968138192,7.0373,142.05,142.04,8.535602]
[1750968138587,4.53975177,142.06,142.03,8.535602]
[1750968138884,7.0373,142.05,142.03,8.535602]
[1750968139093,4.53975177,142.06,142.03,8.535602]
[1750968139783,7.0376,142.05,142.03,8.535602]
[1750968140792,7.0378,142.04,142.03,8.535602]
[1750968143787,7.0383,142.03,142.02,8.535602]
[1750968145590,7.0388,142.02,142.01,8.535602]
[1750968146080,7.0393,142.01,142.0,8.535602]
[1750968147087,7.0393,142.01,141.99,15.575602]
[1750968147600,4.53975177,142.02,141.98,51.976002]
[1750968147893,4.53975177,142.02,141.98,44.935602]
[1750968149199,4.53975177,142.02,142.0,8.535602]
[1750968149499,11.57885177,142.02,141.99,15.575602]
[1750968149894,11.57885177,142.02,141.99,8.535602]
[1750968150197,11.57885177,142.02,142.0,7.0397]
[1750968150996,43.4385,142.03,142.01,7.0392]
[1750968151198,40.95975177,142.06,142.0,8.535602]
[1750968151392,40.95975177,142.06,142.01,8.535602]
[1750968151699,7.0378,142.05,142.02,15.574002]
[1750968152100,40.95975177,142.06,142.04,7.0376]
[1750968152298,14.0675,142.13,142.04,4.53975177]
[1750968152299,36.42,142.09,142.04,4.53975177]
[1750968152599,7.0346,142.11,142.08,7.0356]
[1750968152796,38.9058,142.13,142.08,7.0356]
[1750968152996,43.44555177,142.13,142.08,7.0356]
[1750968153303,7.0342,142.12,142.07,8.535602]
[1750968153799,43.4535,142.13,142.08,8.535602]
[1750968154598,7.0339,142.12,142.1,7.0344]
[1750968155102,43.4536,142.13,142.1,7.0344]
[1750968156801,36.42,142.13,142.11,7.0343]
[1750968157203,7.0331,142.14,142.11,7.0343]
[1750968157700,36.4,142.16,142.1,4.53975177]
[1750968158701,7.0326,142.15,142.1,4.53975177]
[1750968159207,7.0326,142.15,142.12,7.0334]
[1750968159908,7.0326,142.15,142.13,7.0333]
[1750968160301,7.0326,142.15,142.1,4.53975177]
[1750968161008,7.0326,142.15,142.12,7.0336]
[1750968161402,7.0326,142.15,142.1,4.53975177]
[1750968161603,7.0326,142.15,142.1,40.89975177]
[1750968161808,637.95975177,142.21,142.14,4.53975177]
[1750968162208,7.0304,142.19,142.14,4.53975177]
[1750968162396,637.95975177,142.21,142.14,4.53975177]
[1750968162602,4.51006148,142.2,142.14,4.53975177]
[1750968162806,637.95975177,142.21,142.14,4.53975177]
[1750968163013,7.0301,142.2,142.14,4.53975177]
[1750968163311,7.0301,142.2,142.16,7.0315]
[1750968163511,7.0301,142.2,142.14,4.53975177]
[1750968163905,7.0301,142.2,142.14,40.89975177]
[1750968164510,7.0301,142.2,142.16,7.0315]
[1750968164914,637.95975177,142.21,142.16,7.0315]
[1750968165516,7.0306,142.19,142.16,7.0315]
[1750968166015,7.0306,142.19,142.17,7.0312]
[1750968166608,7.0301,142.2,142.17,7.0312]
[1750968166908,36.36,142.22,142.16,4.53975177]
[1750968167110,43.3891,142.22,142.16,4.53975177]
[1750968167509,43.3891,142.22,142.19,7.0301]
[1750968167708,7.0295,142.21,142.19,7.0301]
[1750968168015,36.36,142.22,142.16,4.53975177]
[1750968168311,36.36,142.22,142.18,7.0308]
[1750968168709,36.36,142.22,142.16,4.53975177]
[1750968168914,7.0294,142.21,142.16,4.53975177]
[1750968169511,36.36,142.22,142.16,4.53975177]
[1750968171513,4.53975177,142.21,142.14,36.36]
[1750968171918,11.56935177,142.21,142.18,7.0304]
[1750968172309,11.56935177,142.21,142.15,4.53975177]
[1750968172620,4.53975177,142.21,142.18,7.0306]
[1750968172817,36.36,142.22,142.15,4.53975177]
[1750968173413,7.0296,142.21,142.15,4.53975177]
[1750968173615,4.53975177,142.24,142.17,4.53975177]
[1750968174010,7.0291,142.22,142.19,7.0301]
[1750968175222,7.0291,142.22,142.2,7.0299]
[1750968176917,7.0294,142.21,142.19,7.0303]
[1750968177218,4.53975177,142.24,142.17,4.53975177]
[1750968178323,7.0291,142.22,142.2,7.0299]
[1750968178623,4.53975177,142.24,142.17,4.53975177]
[1750968178624,41.0034,142.25,142.18,36.34]
[1750968178825,7.0286,142.23,142.2,7.0294]
[1750968180219,7.0286,142.23,142.18,36.34]
[1750968180422,7.0289,142.22,142.18,36.34]
[1750968180930,7.0294,142.21,142.19,7.0303]
[1750968181324,4.53975177,142.24,142.18,36.34]
[1750968182730,7.0291,142.22,142.2,7.0298]
[1750968183428,4.53975177,142.22,142.15,36.34]
[1750968183625,4.53975177,142.2,142.15,36.34]
[1750968184031,7.0306,142.19,142.16,7.0316]
[1750968184224,4.53975177,142.2,142.16,7.0316]
[1750968185232,7.0308,142.19,142.16,7.0316]
[1750968186430,7.0309,142.18,142.16,7.0316]
[1750968186630,4.53975177,142.2,142.15,43.3721]
[1750968186831,4.53975177,142.18,142.15,7.0321]
[1750968187730,4.53975177,142.18,142.16,7.0318]
[1750968188134,36.34,142.21,142.13,4.53975177]
[1750968188333,4.53975177,142.2,142.13,4.53975177]
[1750968188635,7.0306,142.19,142.13,4.53975177]
[1750968188934,7.0306,142.19,142.16,7.0315]
[1750968189835,7.0312,142.18,142.15,7.0319]
[1750968190034,4.53975177,142.18,142.12,38.7528]
[1750968190225,4.53975177,142.16,142.12,36.34]
[1750968190431,7.0326,142.15,142.12,7.0336]
[1750968191232,4.53975177,142.16,142.11,7.034]
[1750968191437,4.53975177,142.14,142.11,7.034]
[1750968191637,4.53975177,142.14,142.09,36.28]
[1750968192426,7.0339,142.12,142.09,43.3149]
[1750968193338,7.0346,142.11,142.08,7.0357]
[1750968193739,4.53975177,142.12,142.08,7.0357]
[1750968193929,7.0346,142.11,142.08,7.0357]
[1750968194838,4.53975177,142.12,142.06,40.81975177]
[1750968195230,43.30135177,142.14,142.06,40.81975177]
[1750968195435,43.30135177,142.14,142.1,7.0346]
[1750968196132,43.30135177,142.14,142.09,7.0351]
[1750968196738,4.53975177,142.13,142.09,7.0351]
[1750968197138,7.0341,142.12,142.09,7.0351]
[1750968197642,4.53975177,142.13,142.09,7.0351]
[1750968198544,7.0345,142.11,142.09,7.0351]
[1750968198839,4.53975177,142.13,142.09,7.0351]
[1750968199744,7.0339,142.12,142.09,7.0351]
[1750968200144,4.53975177,142.13,142.1,7.0347]
[1750968200641,4.53975177,142.11,142.06,36.28]
[1750968201242,4.53975177,142.09,142.06,43.3165]
[1750968201441,4.53975177,142.09,142.06,7.0365]
[1750968201845,11.57535177,142.09,142.06,7.0365]
[1750968202247,7.0359,142.08,142.06,7.0365]
[1750968202645,4.53975177,142.09,142.06,7.0365]
[1750968202845,11.57525177,142.09,142.06,7.0365]
[1750968203755,7.0359,142.08,142.06,7.0365]
[1750968206649,4.53975177,142.09,142.05,7.0372]
[1750968207051,4.53975177,142.09,142.03,45.81205177]
[1750968207440,11.57525177,142.09,142.06,7.0364]
[1750968207639,36.3,142.1,142.03,45.81205177]
[1750968208446,36.3,142.1,142.05,4.53975177]
[1750968208851,4.53975177,142.12,142.05,4.53975177]
[1750968209050,4.53975177,142.12,142.09,7.0351]
[1750968210157,7.0346,142.11,142.09,7.0351]
[1750968210351,4.53975177,142.12,142.08,7.0356]
[1750968211255,7.0347,142.11,142.08,7.0356]
[1750968211458,7.0347,142.11,142.05,4.53975177]
[1750968211754,7.0342,142.12,142.05,4.53975177]
[1750968212156,7.0342,142.12,142.05,11.06330129]
[1750968212456,7.0342,142.12,142.09,7.035]
[1750968212657,7.0344,142.11,142.09,7.035]
[1750968213458,7.0345,142.11,142.08,7.0356]
[1750968215357,7.0345,142.11,142.09,7.035]
[1750968215858,7.0345,142.11,142.08,7.0356]
[1750968217455,4.53975177,142.11,142.07,7.036]
[1750968218159,4.53975177,142.11,142.03,45.81205177]
[1750968218566,11.57425177,142.11,142.03,45.81205177]
[1750968218758,11.57425177,142.11,142.08,7.0353]
[1750968219061,4.53975177,142.11,142.03,45.81205177]
[1750968219260,4.53975177,142.11,142.09,7.0353]
[1750968219862,11.57435177,142.11,142.08,7.0355]
[1750968221565,7.0348,142.1,142.08,7.0355]
[1750968222567,4.53975177,142.11,142.07,7.036]
[1750968223068,7.0351,142.1,142.07,7.036]
[1750968223560,7.0354,142.09,142.07,7.036]
[1750968223767,4.53975177,142.11,142.03,41.2723]
[1750968224058,4.53975177,142.09,142.03,41.2723]
[1750968224262,7.0361,142.08,142.05,7.037]
[1750968224465,40.75975177,142.09,142.05,7.037]
[1750968224864,7.0363,142.08,142.05,7.037]
[1750968225068,40.75975177,142.09,142.04,7.0375]
[1750968225262,40.75975177,142.09,142.03,38.8002]
[1750968225462,7.0362,142.08,142.03,38.8002]
[1750968225673,7.0362,142.08,142.05,7.037]
[1750968225870,7.0362,142.08,142.03,38.8002]
[1750968226361,7.0362,142.08,142.06,7.0365]
[1750968226568,47.79535177,142.09,142.03,38.8002]
[1750968226765,43.2556,142.09,142.03,38.8002]
[1750968227166,43.2556,142.09,142.03,47.335802]
[1750968227470,7.0359,142.08,142.03,43.33995177]
[1750968227774,7.0359,142.08,142.05,7.037]
[1750968228367,40.75975177,142.09,142.03,36.3]
[1750968228572,4.53975177,142.05,142.0,44.775602]
[1750968228777,4.53975177,142.05,142.02,6.54839866]
[1750968228969,11.57745177,142.05,142.02,13.58699866]
[1750968231276,7.0381,142.04,142.02,6.54839866]
[1750968231469,7.0381,142.04,142.01,13.58739866]
[1750968233174,7.0381,142.04,142.01,7.039]
[1750968233369,7.0381,142.04,142.01,13.58739866]
[1750968234078,40.77975177,142.05,142.01,13.58739866]
[1750968234079,40.77975177,142.05,142.01,6.54839866]
[1750968234266,40.77975177,142.05,142.0,6.54839866]
[1750968234765,7.0383,142.04,142.01,7.0391]
[1750968236372,7.0384,142.03,142.01,7.0391]
[1750968236574,40.77975177,142.05,142.01,7.039]
[1750968236975,40.77975177,142.05,141.98,6.81545177]
[1750968237177,40.77975177,142.05,141.99,2.4297]
[1750968237880,7.0379,142.04,142.02,7.0385]
[1750968239181,47.81735177,142.05,142.02,7.0385]
[1750968239478,47.81735177,142.05,141.99,2.4297]
[1750968239682,47.81735177,142.05,142.03,7.0379]
[1750968241782,43.2776,142.05,142.03,7.0379]
[1750968242681,43.2776,142.05,142.04,7.0378]
[1750968242682,36.24,142.05,142.04,7.0378]
[1750968242984,36.24,142.05,141.99,2.4297]
[1750968243189,4.53975177,142.03,141.97,40.77975177]
[1750968243682,11.57825177,142.03,142.01,7.039]
[1750968243887,36.24,142.05,141.97,40.77975177]
[1750968244087,7.039,142.02,141.99,7.0398]
[1750968244490,7.039,142.02,141.97,40.77975177]
[1750968245589,7.039,142.02,142.0,7.0397]
[1750968246384,7.0393,142.01,141.99,7.04]
[1750968246988,4.53975177,142.03,141.99,7.04]
[1750968247888,7.039,142.02,141.99,7.04]
[1750968248389,40.77975177,142.05,141.98,6.55554312]
[1750968248589,7.0386,142.03,141.98,6.55554312]
[1750968248895,7.0386,142.03,142.0,7.0394]
[1750968249191,7.0386,142.03,141.98,6.55554312]
[1750968249383,7.0386,142.03,142.0,7.0395]
[1750968249789,7.0386,142.03,141.98,6.55554312]
[1750968249993,7.0386,142.03,142.0,7.0394]
[1750968251388,7.0386,142.03,142.01,7.039]
[1750968251995,11.57835177,142.03,142.0,7.0396]
[1750968252185,11.57835177,142.03,141.97,42.79554312]
[1750968252694,7.0389,142.02,141.97,42.79554312]
[1750968252890,4.53975177,142.03,141.97,42.79554312]
[1750968253390,7.0394,142.01,141.99,7.0399]
[1750968253784,11.57915177,142.01,141.99,7.0399]
[1750968256791,7.0394,142.01,141.99,7.0399]
[1750968256994,11.57875177,142.02,142.0,7.0398]
[1750968259402,7.0386,142.03,142.01,7.0392]
[1750968259703,40.69975177,142.1,142.02,40.69975177]
[1750968259995,7.0351,142.1,142.07,7.036]
[1750968260389,7.0351,142.1,142.04,4.53975177]
[1750968260589,7.0351,142.1,142.07,7.0359]
[1750968260801,7.0354,142.09,142.07,7.0359]
[1750968261991,7.0354,142.09,142.06,7.0367]
[1750968262193,7.036,142.08,142.03,42.71554312]
[1750968262500,4.53975177,142.1,142.06,7.0366]
[1750968262700,7.0359,142.08,142.06,7.0366]
[1750968264696,7.0359,142.08,142.05,7.0371]
[1750968264999,7.0364,142.07,142.05,7.0371]
[1750968266200,7.0361,142.08,142.05,7.0371]
[1750968267004,7.0364,142.07,142.05,7.0371]
[1750968267303,40.69975177,142.09,142.05,7.0371]
[1750968267498,7.0361,142.08,142.05,7.0371]
[1750968269492,7.0361,142.08,142.06,7.0366]
[1750968269705,47.73535177,142.09,142.06,7.0366]
[1750968270594,7.0351,142.1,142.07,7.0362]
[1750968271199,4.53975177,142.11,142.06,7.0368]
[1750968271795,4.53975177,142.11,142.04,4.53975177]
[1750968272308,7.0363,142.08,142.05,7.037]
[1750968272509,4.53975177,142.09,142.05,7.037]
[1750968272706,4.53975177,142.09,142.03,36.16]
[1750968273013,4.53975177,142.09,142.0,142.29975177]
[1750968273014,4.53975177,142.05,142.0,36.16]
[1750968273312,11.57735177,142.05,142.02,7.0385]
[1750968273901,4.53975177,142.05,142.0,36.16]
[1750968275010,4.53975177,142.05,142.03,7.038]
[1750968275414,4.53975177,142.05,142.0,36.16]
[1750968275415,4.53975177,142.05,142.04,7.0378]
[1750968277213,36.16,142.06,142.05,7.0373]
[1750968278201,36.16,142.06,142.04,7.0376]
[1750968279113,11.57625177,142.07,142.05,7.0373]
[1750968280627,4.53975177,142.07,142.05,7.0373]
[1750968280927,40.61975177,142.09,142.01,2.4805]
[1750968281116,7.0358,142.08,142.02,4.53975177]
[1750968281818,40.61975177,142.09,142.02,4.53975177]
[1750968282321,7.0363,142.07,142.04,7.0378]
[1750968283121,7.0363,142.07,142.05,7.0373]
[1750968283122,4.53975177,142.07,142.05,7.0373]
[1750968283331,36.08,142.09,142.02,4.53975177]
[1750968283520,43.1158,142.09,142.02,4.53975177]
[1750968283824,43.1158,142.09,142.06,7.0366]
[1750968285729,43.1158,142.09,142.07,7.0363]
[1750968286928,36.08,142.09,142.07,7.0363]
[1750968288029,16.06003287,142.11,142.04,40.61975177]
[1750968288430,11.57435177,142.11,142.04,40.61975177]
[1750968288631,7.0349,142.1,142.04,40.61975177]
[1750968289032,7.0349,142.1,142.08,7.0356]
[1750968289928,7.0353,142.09,142.07,7.0362]
[1750968290235,4.53975177,142.11,142.07,7.0362]
[1750968291137,7.0354,142.09,142.07,7.0362]
[1750968292141,7.0351,142.1,142.07,7.0362]
[1750968292632,7.0351,142.1,142.08,7.0355]
[1750968292840,43.1141,142.12,142.04,40.61975177]
[1750968294537,43.1141,142.12,142.1,7.0347]
[1750968297336,7.0341,142.12,142.1,7.0347]
[1750968297536,11.57335177,142.13,142.1,7.0347]
[1750968297736,11.57335177,142.13,142.11,7.0342]
[1750968297941,11.57335177,142.13,142.06,4.53975177]
[1750968298341,11.57335177,142.13,142.1,7.0345]
[1750968298535,7.0339,142.12,142.1,7.0345]
[1750968301837,11.57335177,142.13,142.11,7.0343]
[1750968302537,14.0587,142.22,142.08,40.61975177]
[1750968302744,4.53975177,142.18,142.12,4.53975177]
[1750968302942,40.61975177,142.2,142.17,7.0313]
[1750968303242,36.08,142.2,142.14,4.53975177]
[1750968303543,7.0291,142.22,142.2,7.0298]
[1750968303839,7.0291,142.22,142.16,40.61975177]
[1750968304644,7.0295,142.21,142.16,40.61975177]
[1750968305749,7.0299,142.2,142.18,7.0305]
[1750968306244,40.61975177,142.23,142.18,7.0305]
[1750968306440,7.0296,142.21,142.18,7.0305]
[1750968306747,40.61975177,142.23,142.19,7.0302]
[1750968307542,7.029,142.22,142.19,7.0302]
[1750968307746,40.61975177,142.23,142.19,7.0302]
[1750968308138,7.0293,142.22,142.19,7.0302]
[1750968309551,7.0294,142.21,142.19,7.0302]
[1750968309845,40.61975177,142.23,142.19,7.0302]
[1750968310031,11.70305177,142.25,142.16,40.61975177]
[1750968310236,4.53975177,142.27,142.18,4.53975177]
[1750968310432,7.0288,142.23,142.19,4.6932]
[1750968310634,4.53975177,142.25,142.2,35.98]
[1750968311641,4.53975177,142.27,142.2,40.51975177]
[1750968311944,7.0267,142.27,142.24,7.0276]
[1750968312246,35.98,142.28,142.2,40.51975177]
[1750968312439,40.51975177,142.28,142.21,2.3312]
[1750968312651,35.98,142.28,142.21,2.3312]
[1750968312847,40.51975177,142.28,142.21,2.3312]
[1750968314439,40.51975177,142.28,142.24,7.0276]
[1750968314440,7.0265,142.27,142.24,7.0276]
[1750968315038,4.53975177,142.26,142.2,35.98]
[1750968315737,7.0282,142.24,142.21,7.0291]
[1750968316338,4.53975177,142.26,142.22,7.0288]
[1750968316339,7.0276,142.25,142.22,7.0288]
[1750968316743,4.53975177,142.27,142.2,35.98]
[1750968316942,7.0271,142.26,142.23,7.0282]
[1750968317142,4.53975177,142.27,142.2,35.98]
[1750968317448,11.56645177,142.27,142.24,7.0277]
[1750968318550,7.0269,142.26,142.24,7.0277]
[1750968319047,4.53975177,142.27,142.24,7.0277]
[1750968319547,11.56645177,142.27,142.24,7.0277]
[1750968319943,4.53975177,142.27,142.25,7.0273]
[1750968320246,7.0744,142.31,142.24,35.98]
[1750968320540,4.53975177,142.29,142.24,35.98]
[1750968320741,11.56535177,142.29,142.24,35.98]
[1750968320941,11.56535177,142.29,142.26,7.0267]
[1750968321442,7.026,142.28,142.26,7.0267]